Cogmind - Beta 14 @@@ ROGUE MODE // 2024.09.27 @ 05:06:41 Player: Darby Result: Destroyed by D-53 Grenadier with Mini Grenade Launcher Performance ------------- Evolutions (3) 1500 Regions Visited (14) 2800 Robots Destroyed (262) 1310 Value Destroyed (7619) 7619 Prototype IDs (239) 4780 Alien Tech Used (0) 0 Bonus (6327) 6327 TOTAL SCORE: 24336 Bonus ------- High Alert Combat Kills 1660 Follower Combat Kills 903 Entered Garrisons 200 Used RIF Installer 500 Met Data Miner 300 Used Data Conduit 3000 Friendly Fire -236 Cogmind --------- Core Integrity 0/700 Matter 295/300 Energy 99/325 System Corruption 24% Temperature Warm (160) Movement Walking (120) Location -6/Proximity Caves Parts ------- > --- POWER (1) -------- Antimatter Reactor > --- PROPULSION (5) --- Enhanced Flexi-carbon Leg Enhanced Flexi-carbon Leg Enhanced Flexi-carbon Leg Enhanced Flexi-carbon Leg > --- UTILITY (5) ------ Large Storage Unit Improved Signal Interpreter Advanced Targeting Computer Relay Coupler [Hunter] (17) > --- WEAPON (2) ------- (None) > --- INVENTORY (15) --- Enhanced Flexi-carbon Leg Enhanced Flexi-carbon Leg Advanced Energy Well (500) Improved Sensor Array Advanced Particle Charger System Mapper Deep Network Scanner Relay Coupler [NC] (40) Relay Coupler [Grunt] (34) Relay Coupler [Heavy] (11) Relay Coupler [Behemoth] (14) Improved Grenade Launcher Improved Datajack Axe Peak State ------------ > --- POWER ------------ Antimatter Reactor > --- PROPULSION ------- Enhanced Flexi-carbon Leg Enhanced Flexi-carbon Leg Enhanced Flexi-carbon Leg Enhanced Flexi-carbon Leg Enhanced Flexi-carbon Leg > --- UTILITY ---------- Large Storage Unit Improved Signal Interpreter Advanced Targeting Computer Layered Medium Armor Plating Relay Coupler [Hunter] > --- WEAPON ----------- Neutron Cannon Neutron Cannon > --- INVENTORY -------- Antimatter Reactor Enhanced Flexi-carbon Leg Enhanced Flexi-carbon Leg Advanced Energy Well Improved Sensor Array Advanced Particle Charger System Mapper Deep Network Scanner Relay Coupler [NC] Relay Coupler [Grunt] Relay Coupler [Heavy] Relay Coupler [Behemoth] Improved Grenade Launcher Improved Datajack Axe [Rating: 81] Favorites ----------- Power Cooled Ion Engine Engine Cooled Ion Engine Power Core Micro Nuclear Core Reactor Antimatter Reactor Propulsion Advanced Treads Treads Advanced Treads Leg Aluminum Leg Wheel Armored Wheel Hover Unit Gravmag System Utility Large Storage Unit Device Improved Sensor Array Storage Large Storage Unit Processor Advanced Targeting Computer Hackware Relay Coupler [Hunter] Protection Hardened Light Armor Plating Weapon Katana Energy Gun Spread Laser Energy Cannon Advanced Beam Cannon Ballistic Gun Improved Assault Rifle Launcher Improved Grenade Launcher Special Weapon Remote Datajack Impact Weapon Heavy Hammer Slashing Weapon Katana Special Melee Weapon Improved Datajack Build | -11 -10 -10 -9 -9 -9 -8 -8 -8 -8 -7 -7 -7 -7 -6 ------- Run | Yrd Mat Min Mat Min Exi Min Mat Gar Mat Fac Low Low Dat Pro Slots Evolved 6 | . . . 2 . . . 2 . . 2 . . . . Power . | . . . . . . . . . . . . . . . Propulsion 3 | . . . 1 . . . 1 . . 1 . . . . Utility 3 | . . . 1 . . . 1 . . 1 . . . . Weapon . | . . . . . . . . . . . . . . . Parts Attached 291 | 7 39 2 60 16 1 3 6 83 9 39 . 2 21 3 Power 20 | 1 3 . 5 . . . . 3 . 5 . . 2 1 Engine 9 | 1 1 . 5 . . . . . . 2 . . . . Core 8 | . 2 . . . . . . 3 . 3 . . . . Reactor 3 | . . . . . . . . . . . . . 2 1 Propulsion 77 | 2 11 . 9 3 . 1 1 25 5 12 . . 8 . Treads 14 | . . . 8 . . . 1 . . 5 . . . . Leg 30 | 2 9 . 1 3 . 1 . 8 . . . . 6 . Wheel 7 | . . . . . . . . 7 . . . . . . Hover 26 | . 2 . . . . . . 10 5 7 . . 2 . Flight . | . . . . . . . . . . . . . . . Utility 44 | 2 4 . 9 1 . . . 13 . 9 . . 5 1 Device 11 | 1 . . 2 . . . . 4 . 2 . . 2 . Storage 5 | 1 2 . 2 . . . . . . . . . . . Processor 5 | . 2 . 1 . . . . 2 . . . . . . Hackware 11 | . . . . . . . . 6 . 5 . . . . Protection 12 | . . . 4 1 . . . 1 . 2 . . 3 1 Artifact . | . . . . . . . . . . . . . . . Weapon 150 | 2 21 2 37 12 1 2 5 42 4 13 . 2 6 1 Energy Gun 29 | 1 9 1 6 1 . 2 1 2 1 4 . . 1 . Energy Cannon 11 | . . . 6 . . . 2 . . . . . 2 1 Ballistic Gun 43 | 1 3 . 12 5 1 . 2 16 . 2 . . 1 . Ballistic Cannon . | . . . . . . . . . . . . . . . Launcher 21 | . . . 10 2 . . . 6 . 2 . 1 . . Special Weapon 18 | . 8 . . 1 . . . 8 1 . . . . . Impact Weapon 8 | . 1 1 3 3 . . . . . . . . . . Slashing Weapon 19 | . . . . . . . . 10 2 4 . 1 2 . Piercing Weapon . | . . . . . . . . . . . . . . . Special Melee Weapon 1 | . . . . . . . . . . 1 . . . . Unidentified Prototypes 5 | . . . 4 . . . . . 1 . . . . . Corrupted Parts 2 | . . . . . . . . . . . . . 1 1 System Corruption 15 | . . . . . . . . . . . . . 11 4 Parts Lost 36 | . 2 . 2 . . . . 4 1 10 . . 12 5 Power 6 | . 1 . . . . . . 1 . 2 . . 1 1 Propulsion 15 | . . . . . . . . 2 1 6 . . 5 1 Utility 3 | . . . . . . . . . . . . . 2 1 Weapon 12 | . 1 . 2 . . . . 1 . 2 . . 4 2 Highest Loss Streak 9 | . 1 . 1 . . . . 3 1 7 . . 9 5 To Critical Strikes . | . . . . . . . . . . . . . . . Average Slot Usage (%) 97 | . 99 100 99 100 100 100 82 94 96 94 100 100 87 98 Engine 6 | . 10 . 10 11 11 11 9 3 . 2 . . . . Core 3 | . 3 14 . . . . . 4 9 4 7 7 3 . Treads 17 | . . . 31 14 . . 1 . . 20 38 38 21 . Leg 9 | . 23 28 . 18 33 33 27 10 . . . . 7 37 Hover 6 | . 4 . . . . . . 21 33 16 . . 2 . Device 2 | . . . . . . . . 1 9 6 7 7 2 5 Storage 9 | . 14 14 11 11 11 11 9 9 9 7 7 7 7 7 Processor 13 | . 13 14 11 11 11 11 9 14 18 15 15 15 15 15 Hackware 2 | . . . . . . . . 2 . 6 7 7 7 7 Protection 5 | . . . 10 11 11 11 9 4 . . . . 2 . Energy Gun 4 | . 11 2 4 10 1 10 8 4 5 1 . . . . Energy Cannon 1 | . . . 4 . . . . . . . . . 2 7 Ballistic Gun 7 | . 13 14 11 8 9 11 9 6 . . . . 1 . Special Weapon 1 | . 1 . . . 11 . . 3 6 2 . . . . Slashing Weapon 2 | . . . . . . . . 3 6 5 7 14 7 5 Peak Build Rating 81 | 8 12 12 28 29 31 31 32 51 45 52 50 50 77 81 Average Rating 33 | 5 9 12 25 26 29 29 30 41 40 46 50 49 51 74 On Entrance 32 | . 8 12 12 27 28 31 30 32 45 41 50 50 50 75 Naked Turns . | . . . . . . . . . . . . . . . Heaviest Build 62 | 12 19 20 45 44 38 38 42 40 34 40 30 35 56 62 Greatest Support 140 | 20 20 20 66 66 40 40 40 53 41 140 140 140 140 140 Greatest Overweight (x) 2 | . 1 . 1 1 . . 1 2 1 1 . . 1 . Average Overweight (x) . | . . . . . . . . . . . . . . . Largest Inventory Capacity 15 | 8 10 10 15 15 15 15 15 15 15 15 15 15 15 15 Average Capacity 14 | 7 9 10 15 15 15 15 15 15 15 15 15 15 15 15 Most Carried 15 | 8 10 10 15 15 15 15 15 15 15 15 14 15 15 15 Average Carried 13 | 4 9 10 14 14 14 15 15 14 14 14 13 14 13 14 Final Capacity 15 | 8 10 10 15 15 15 15 15 15 15 15 15 15 15 15 Final Carried 15 | 8 10 10 15 14 15 15 15 15 15 12 14 15 15 14 Class Distribution -------------------- 53% | Mutant 25% | Bothacker-Mutant 12% | Commander-Mutant 7% | Scavenger-Mutant Dominant Class ---------------- Mutant | -10/Materials Mutant | -10/Mines Mutant | -9/Materials Mutant | -9/Mines Mutant | -9/Exiles Mutant | -8/Mines Mutant | -8/Materials Commander-Mutant | -8/Garrison Bothacker-Mutant | -8/Materials Bothacker-Mutant | -7/Factory Commander-Mutant | -7/Lower Caves Bothacker-Mutant | -7/Lower Caves Bothacker-Mutant | -7/Data Miner Bothacker-Mutant | -6/Proximity Caves Resources | -11 -10 -10 -9 -9 -9 -8 -8 -8 -8 -7 -7 -7 -7 -6 ----------- Run | Yrd Mat Min Mat Min Exi Min Mat Gar Mat Fac Low Low Dat Pro Matter Collected 5786 | 306 566 28 1828 308 105 74 72 1537 111 448 3 106 226 68 Remotely . | . . . . . . . . . . . . . . . Salvage Created 8779 | 145 809 62 4040 565 170 108 121 1651 268 448 . 48 311 33 Parts 591 | 15 45 6 263 42 6 7 6 118 19 42 . 7 15 . Haulers Intercepted 10 | . 2 . 5 . . . . . 2 1 . . . . Recyclers Shooed 7 | . 1 1 4 . . . . . . 1 . . . . Parts Field Recycled . | . . . . . . . . . . . . . . . Retrieved Matter . | . . . . . . . . . . . . . . . Parts Self-Destructed 13 | . . . . . . . . . . . 2 6 . 5 Prevented 2 | . . . . . . . . . . . 2 . . . Kills | -11 -10 -10 -9 -9 -9 -8 -8 -8 -8 -7 -7 -7 -7 -6 ------- Run | Yrd Mat Min Mat Min Exi Min Mat Gar Mat Fac Low Low Dat Pro Combat Hostiles Destroyed 144 | . 9 3 55 14 . 3 1 44 . 8 . 3 3 1 Melee 4 | . . . . . . . . . . 3 . . 1 . Guns 83 | . 8 3 22 11 . 3 1 33 . 1 . . 1 . Cannons 15 | . . . 14 . . . . . . . . . . 1 AOE 39 | . 1 . 17 3 . . . 11 . 4 . 3 . . Classes Destroyed 19 | 2 5 1 6 . . . . 3 . . . 1 . 1 Worker 42 | . 4 1 28 3 . 1 1 . 2 2 . . . . Builder 25 | . 3 . 20 1 . . . . . 1 . . . . Tunneler 15 | 5 1 . 4 3 . . . . 1 1 . . . . Hauler 10 | . 2 . 5 . . . . . 2 1 . . . . Recycler 18 | 1 1 . 12 2 . . 1 . 1 . . . . . Minesweeper 1 | . . . . . . . . . . . . 1 . . Mechanic 3 | . . . 2 . . . . . 1 . . . . . Operator 1 | . . . 1 . . . . . . . . . . . Watcher 12 | . 3 . 5 . . . . . 1 3 . . . . Swarmer 37 | . . 3 3 4 . 2 . 18 . 4 . 3 . . Grunt 65 | . 9 . 31 9 . 1 . 15 . . . . . . Brawler 4 | . . . 3 1 . . . . . . . . . . Duelist 7 | . . . 6 . . . . 1 . . . . . . Protector 2 | . . . 2 . . . . . . . . . . . Sentry 18 | . . . 10 . . . 1 6 . 1 . . . . Demolisher 1 | . . . . . . . . . . . . . . 1 Specialist 2 | . . . . . . . . 2 . . . . . . Hunter 1 | . . . . . . . . 1 . . . . . . Programmer 6 | . . . . . . . . 3 . 3 . . . . Enhanced Grunt 3 | . . . . . . . . . . . . . 3 . Best Kill Streak 12 | 6 3 4 12 4 . 2 2 7 4 5 . 3 2 1 Combat Bots Only 7 | . 3 3 5 3 . 2 1 7 . 4 . 3 2 1 Max Kills in Single Turn 6 | 1 1 1 6 2 . 1 1 3 1 4 . 1 1 1 Gunslinging 1 | . . . . 1 . . . 1 . . . . . . Exploded 4 | . 1 . 4 1 . . . 3 . 3 . 1 . . Melee 1 | . . . . . . . . . . 1 . . 1 . Uniques/NPCs Destroyed 1 | . . . . . . . . . . . . . 1 . Data Miner (-7/Data Miner) Combat | -11 -10 -10 -9 -9 -9 -8 -8 -8 -8 -7 -7 -7 -7 -6 -------- Run | Yrd Mat Min Mat Min Exi Min Mat Gar Mat Fac Low Low Dat Pro Hostile Shots Fired 623 | . 46 6 149 29 . 14 2 152 8 83 2 9 63 60 Missed 170 | . 8 1 28 7 . 7 . 52 3 30 2 2 16 14 Damage Taken 8725 | . 550 37 1676 298 . 101 31 1377 74 1077 . 168 2029 1307 Core 1290 | . 123 . 181 49 . . . 232 . 177 . . 402 126 Absorbed by Shields . | . . . . . . . . . . . . . . . Regen/Repaired (Parts) 576 | . . . 446 . . . . . 38 92 . . . . Core Remaining (%) 62 | 100 . 50 . . . 42 . . 57 . . . . . Volleys Fired 622 | 12 70 5 290 34 24 8 4 108 12 17 . 3 25 10 Largest 2 | 2 2 2 2 2 1 2 2 2 2 2 . 1 2 2 Hottest 180 | 60 100 60 91 88 23 88 86 115 115 120 . 36 118 180 Shots Fired 1079 | 18 128 10 530 67 24 16 8 175 20 27 . 3 38 15 Gun 854 | 18 118 10 402 60 15 16 8 148 19 20 . . 20 . Cannon 143 | . . . 110 . . . . . . . . . 18 15 Launcher 34 | . . . 18 6 . . . 5 . 2 . 3 . . Special 48 | . 10 . . 1 9 . . 22 1 5 . . . . Kinetic 564 | 12 71 5 281 30 15 8 4 117 . 6 . . 15 . Thermal 415 | 6 57 5 231 30 . 8 4 31 . 5 . . 23 15 Explosive 34 | . . . 18 6 . . . 5 . 2 . 3 . . Electromagnetic 30 | . . . . . . . . 2 19 9 . . . . Robot Hit Streak 29 | 6 12 9 29 11 6 5 9 23 5 10 . . 10 8 Robot Miss Streak 11 | 1 5 1 6 6 1 2 . 11 2 1 . . 2 1 Penetration Max 1 | . . . . . . . . 1 . . . . 1 . Secondary Targets 13 | . 1 1 2 2 . 1 . 6 . . . . . . Max Gunslinging Chain 1 | . 1 1 1 1 . 1 . 1 . . . . . . Shots Hit Robots 827 | 13 74 9 379 49 19 12 6 159 25 41 . 2 28 11 Core Hits 580 | 7 32 4 255 65 8 9 4 142 8 22 . 5 14 5 Critical Kills 3 | . . . 2 . . . . . . . . . 1 . Critical Parts Destroyed 6 | . 2 . 3 1 . . . . . . . . . . Critical Strikes 20 | . 2 . 5 1 . 1 1 4 1 1 . . 4 . Burn 3 | . . . . . . 1 1 1 . . . . . . Meltdown 3 | . . . 2 . . . . . . . . . 1 . Destroy 4 | . . . 3 1 . . . . . . . . . . Smash 2 | . 2 . . . . . . . . . . . . . Sever 8 | . . . . . . . . 3 1 1 . . 3 . Melee Attacks 171 | . 11 2 9 11 . . . 66 20 42 . 2 7 1 Impact 33 | . 11 2 9 11 . . . . . . . . . . Slashing 137 | . . . . . . . . 66 20 41 . 2 7 1 Piercing . | . . . . . . . . . . . . . . . Sneak Attacks 26 | . 5 1 1 1 . . . . 6 10 . 1 1 . Combat Hostiles . | . . . . . . . . . . . . . . . Follow-up Attacks . | . . . . . . . . . . . . . . . Damage Inflicted 19178 | 151 1360 161 8123 1108 187 207 104 3817 835 1727 . 290 703 405 Guns 9093 | 151 827 88 3959 737 187 207 104 2077 216 241 . . 299 . Cannons 2493 | . . . 1888 . . . . . . . . . 200 405 Explosions 3932 | . 140 . 2228 259 . . . 665 . 455 . 185 . . Melee 3643 | . 393 73 48 112 . . . 1075 619 1031 . 105 187 . Ramming 17 | . . . . . . . . . . . . . 17 . Kinetic 5942 | 107 503 46 2672 293 187 126 33 1692 . 62 . . 221 . Thermal 5539 | 44 464 42 3175 444 . 81 71 373 . 162 . . 278 405 Explosive 3732 | . . . 2228 259 . . . 665 . 395 . 185 . . Electromagnetic 305 | . . . . . . . . 12 216 77 . . . . Impact 626 | . 393 73 48 112 . . . . . . . . . . Slashing 3017 | . . . . . . . . 1075 619 1031 . 105 187 . Piercing . | . . . . . . . . . . . . . . . Highest Corruption 24 | . . . . . . . . 2 3 2 2 2 13 24 Average Corruption 2 | . . . . . . . . 1 2 1 2 2 2 14 Corruption Purged . | . . . . . . . . . . . . . . . Corruption Blocked . | . . . . . . . . . . . . . . . Effects 85 | . . . . . . . . 10 9 13 12 12 5 24 Message Errors 17 | . . . . . . . . 1 2 3 4 2 2 3 Matter Fused 22 | . . . . . . . . 1 3 3 2 5 . 8 Heat Flow Errors 14 | . . . . . . . . 4 3 1 2 1 2 1 Energy Discharges 9 | . . . . . . . . 1 . 4 1 1 . 2 Data Loss (minor) 14 | . . . . . . . . 1 1 1 1 3 1 6 Data Loss (major) 5 | . . . . . . . . 2 . 1 2 . . . Misfires 1 | . . . . . . . . . . . . . . 1 Alerts 1 | . . . . . . . . . . . . . . 1 Weapon Failures 2 | . . . . . . . . . . . . . . 2 Overload Shots . | . . . . . . . . . . . . . . . Overflow Damage 894 | . 333 47 66 77 . . . 43 105 191 . 32 . . Projectiles 50 | . . . 50 . . . . . . . . . . . Explosions 111 | . 70 . 16 5 . . . 20 . . . . . . Melee 733 | . 263 47 . 72 . . . 23 105 191 . 32 . . Knockbacks 2 | . 2 . . . . . . . . . . . . . Impact 2 | . 2 . . . . . . . . . . . . . Kinetic . | . . . . . . . . . . . . . . . Secondary . | . . . . . . . . . . . . . . . Self-Inflicted Damage . | . . . . . . . . . . . . . . . Shots . | . . . . . . . . . . . . . . . Rammed 6 | . . . . . . . . . . . . . 6 . Targets Rammed 6 | . . . . . . . . . . . . . 6 . Kicked . | . . . . . . . . . . . . . . . Crushed . | . . . . . . . . . . . . . . . Highest Temperature 490 | . 105 18 340 234 . 153 57 337 257 149 89 119 315 490 Average Temperature 84 | . 21 8 91 63 . 56 24 78 77 42 49 53 116 226 Received Heat Transfer 1764 | . 270 . 699 138 . 60 9 513 9 54 . 12 . . Effects 13 | . . . 3 3 . . . 1 . . . . 2 4 Shutdowns 1 | . . . . . . . . . . . . . . 1 Energy Bleed 3 | . . . 1 . . . . 1 . . . . 1 . Interference 3 | . . . . 3 . . . . . . . . . . Short Circuit 1 | . . . 1 . . . . . . . . . . . Damage (minor) 2 | . . . 1 . . . . . . . . . 1 . Damage (major) 3 | . . . . . . . . . . . . . . 3 Siege Activations . | . . . . . . . . . . . . . . . Robots Corrupted 1 | . 1 . . . . . . . . . . . . . Combat Hostiles . | . . . . . . . . . . . . . . . Parts Fried 7 | . 4 1 . 1 . . . . . . . . 1 . Impact Corruptions 9 | . 6 1 . 2 . . . . . . . . . . Robots Melted 3 | . . . 2 . . . . . . . . . 1 . Combat Hostiles 3 | . . . 2 . . . . . . . . . 1 . Parts Melted 13 | . . . 8 . . 1 1 1 . . . . 2 . Heat Transferred 9056 | 100 825 100 5154 555 . 237 222 888 . 250 . . 725 . Parts Sabotaged . | . . . . . . . . . . . . . . . Parts Stolen . | . . . . . . . . . . . . . . . Parts Stripped . | . . . . . . . . . . . . . . . Power Chain Reactions 1 | . . . . . . . . . . 1 . . . . Alert | -11 -10 -10 -9 -9 -9 -8 -8 -8 -8 -7 -7 -7 -7 -6 ------- Run | Yrd Mat Min Mat Min Exi Min Mat Gar Mat Fac Low Low Dat Pro Peak Influence 2466 | 30 487 211 1715 978 . 144 77 2466 1551 629 . . . . Initial 1201 | . 19 125 5 668 . . . 50 1201 614 . . . . Average 737 | 13 281 157 826 892 . 76 43 1269 1445 408 . . . . Maximum Alert Level 5 | . 2 1 5 3 . . . 5 4 2 . . . . Low Security (%) 13 | 100 19 27 8 . . 100 100 12 . . . . . . Level 1 24 | . 74 72 9 . . . . 7 . 57 . . . . Level 2 23 | . 6 . 36 1 . . . 14 . 42 . . . . Level 3 14 | . . . 12 98 . . . 11 . . . . . . Level 4 16 | . . . 28 . . . . 11 100 . . . . . Level 5 8 | . . . 3 . . . . 41 . . . . . . High Security . | . . . . . . . . . . . . . . . Max Security . | . . . . . . . . . . . . . . . Sterilizations 1 | . . . 1 . . . . . . . . . . . Squads Dispatched 27 | . 3 . 10 . . . 1 . 2 11 . . . . Investigation 10 | . 2 . 5 . . . 1 . . 2 . . . . Extermination 3 | . . . . . . . . . . 3 . . . . Reinforcement 5 | . 1 . 1 . . . . . . 3 . . . . Assault 6 | . . . 4 . . . . . 2 . . . . . Garrison 3 | . . . . . . . . . . 3 . . . . Intercept . | . . . . . . . . . . . . . . . Searches Triggered . | . . . . . . . . . . . . . . . Construction Impeded 2 | . . . 1 . . . . . . 1 . . . . Haulers Reinforced . | . . . . . . . . . . . . . . . Active Scanning Responses . | . . . . . . . . . . . . . . . Cargo Convoy Interrupts . | . . . . . . . . . . . . . . . Stealth | -11 -10 -10 -9 -9 -9 -8 -8 -8 -8 -7 -7 -7 -7 -6 --------- Run | Yrd Mat Min Mat Min Exi Min Mat Gar Mat Fac Low Low Dat Pro Distress Signals 9 | . 1 . 3 . . . . . 1 . . . . 4 Communications Jammed . | . . . . . . . . . . . . . . . Distress Signals . | . . . . . . . . . . . . . . . Times Spotted 250 | . 24 2 82 14 . 6 1 62 17 24 3 4 4 7 Peak Tracking Total 7 | . 5 2 5 4 . 3 1 6 7 4 3 4 4 4 Tactical Retreats 20 | . 3 . 6 1 . . . 5 3 2 . . . . Traps | -11 -10 -10 -9 -9 -9 -8 -8 -8 -8 -7 -7 -7 -7 -6 ------- Run | Yrd Mat Min Mat Min Exi Min Mat Gar Mat Fac Low Low Dat Pro Traps Triggered 16 | . 2 . 3 . . . . 7 1 3 . . . . Indirectly . | . . . . . . . . . . . . . . . Trap Hack Attempts . | . . . . . . . . . . . . . . . Triggered . | . . . . . . . . . . . . . . . Disarmed . | . . . . . . . . . . . . . . . Reprogrammed . | . . . . . . . . . . . . . . . Reused . | . . . . . . . . . . . . . . . Traps Extracted . | . . . . . . . . . . . . . . . Installed . | . . . . . . . . . . . . . . . Triggered . | . . . . . . . . . . . . . . . Machines | -11 -10 -10 -9 -9 -9 -8 -8 -8 -8 -7 -7 -7 -7 -6 ---------- Run | Yrd Mat Min Mat Min Exi Min Mat Gar Mat Fac Low Low Dat Pro Machines Disabled 51 | . 18 . 14 10 . . . 7 . 1 . . . 1 Max in Single Turn 3 | . 2 . 3 1 . . . 1 . 1 . . . 1 Garrison Relay 6 | . . . . . . . . 6 . . . . . . Phase Generator 1 | . . . . . . . . 1 . . . . . . Machines Repaired . | . . . . . . . . . . . . . . . Machines Dismantled 5 | . . . . . . . . 5 . . . . . . Machines Sabotaged . | . . . . . . . . . . . . . . . Overloaded Fab Kills . | . . . . . . . . . . . . . . . Hacking | -11 -10 -10 -9 -9 -9 -8 -8 -8 -8 -7 -7 -7 -7 -6 --------- Run | Yrd Mat Min Mat Min Exi Min Mat Gar Mat Fac Low Low Dat Pro Machines Accessed 64 | . 10 . 16 1 5 . 1 4 7 16 . . 4 . Terminals 34 | . 7 . 12 . . . . 4 4 7 . . . . Fabricators 2 | . . . . . . . . . . 2 . . . . Repair Stations 7 | . 1 . 1 . . . . . 1 4 . . . . Recycling Units 3 | . 2 . 1 . . . . . . . . . . . Scanalyzers 5 | . . . 2 . . . . . 2 1 . . . . Garrison Access 3 | . . . . . . . 1 . . 2 . . . . Total Hacks 239 | . 25 . 56 1 50 . 3 8 19 51 . . 26 . Successful 162 | . 14 . 30 1 50 . 1 2 9 29 . . 26 . Failed 77 | . 11 . 26 . . . 2 6 10 22 . . . . Catastrophic 13 | . . . 3 . . . . 2 3 5 . . . . Database Lockouts . | . . . . . . . . . . . . . . . Manual 77 | . 22 . 34 . 1 . . . 5 15 . . . . Terminals 97 | . 20 . 43 . . . . 8 9 17 . . . . Fabricators 15 | . . . . . . . . . . 15 . . . . Repair Stations 27 | . 2 . 9 . . . . . 5 11 . . . . Recycling Units 4 | . 3 . 1 . . . . . . . . . . . Scanalyzers 13 | . . . 3 . . . . . 5 5 . . . . Garrison Access 6 | . . . . . . . 3 . . 3 . . . . Terminal Hacks 97 | . 3 . 9 1 50 . . 2 1 5 . . 26 . Record 60 | . . . . . 49 . . . . . . . 11 . Part Schematic 9 | . 1 . . . . . . . . . . . 8 . Robot Schematic 5 | . . . . . . . . . . 1 . . 4 . Robot Analysis 2 | . . . 2 . . . . . . . . . . . Prototype ID Bank 5 | . . . 2 . . . . . . . . . 3 . Open Door 1 | . . . . 1 . . . . . . . . . . Emergency Access Points 1 | . . . . . . . . 1 . . . . . . Terminal Index 1 | . . . 1 . . . . . . . . . . . Unreport Threat 2 | . . . 1 . . . . . . 1 . . . . Locate Traps 5 | . 2 . 1 . . . . . . 2 . . . . Hauler Manifests 3 | . . . 2 . . . . . . 1 . . . . Zone Layout 1 | . . . . . . . . . 1 . . . . . Patrol Navigation 1 | . . . . . . . . 1 . . . . . . Derelict Proto ID Bank 1 | . . . . . 1 . . . . . . . . . Fabricator Hacks 10 | . . . . . . . . . . 10 . . . . Network Status 1 | . . . . . . . . . . 1 . . . . Load Schematic 5 | . . . . . . . . . . 5 . . . . Build 4 | . . . . . . . . . . 4 . . . . Repair Station Hacks 15 | . 1 . 8 . . . . . 3 3 . . . . Scan Component 9 | . 1 . 4 . . . . . 2 2 . . . . Repair 6 | . . . 4 . . . . . 1 1 . . . . Recycling Unit Hacks . | . . . . . . . . . . . . . . . Scanalyzer 10 | . . . . . . . . . 5 5 . . . . Insert Component 4 | . . . . . . . . . 3 1 . . . . Analyze 6 | . . . . . . . . . 2 4 . . . . Garrison Access Hacks 3 | . . . . . . . 1 . . 2 . . . . Unlock Access 1 | . . . . . . . 1 . . . . . . . Coupler Status 2 | . . . . . . . . . . 2 . . . . Unauthorized Hacks 27 | . 10 . 13 . . . . . . 4 . . . . Terminals 19 | . 8 . 10 . . . . . . 1 . . . . Track 2 | . 1 . 1 . . . . . . . . . . . Botnet 4 | . 1 . 2 . . . . . . 1 . . . . Disrupt 1 | . . . 1 . . . . . . . . . . . Operators 2 | . 1 . 1 . . . . . . . . . . . Skim 10 | . 5 . 5 . . . . . . . . . . . Fabricators 2 | . . . . . . . . . . 2 . . . . Prioritize 2 | . . . . . . . . . . 2 . . . . Repair Stations . | . . . . . . . . . . . . . . . Recycling Units 3 | . 2 . 1 . . . . . . . . . . . Tunnel 3 | . 2 . 1 . . . . . . . . . . . Scanalyzers 2 | . . . 2 . . . . . . . . . . . Extract 2 | . . . 2 . . . . . . . . . . . Garrison Access 1 | . . . . . . . . . . 1 . . . . Restock 1 | . . . . . . . . . . 1 . . . . Data Cores Recovered . | . . . . . . . . . . . . . . . Used . | . . . . . . . . . . . . . . . Hacking Detections 45 | . 8 . 12 . . . 1 3 6 15 . . . . Full Trace Events 4 | . . . . . . . 1 1 . 2 . . . . Feedback Events . | . . . . . . . . . . . . . . . Feedback Blocked . | . . . . . . . . . . . . . . . Robot Schematics Acquired 5 | . . . . . . . . . . 1 . . 4 . Robots Built 8 | . . . . . . . . . . 8 . . . . Authchips 3 | . . . . . . . . . . 3 . . . . Time 268 | . . . . . . . . . . 268 . . . . Total Robot Build Rating 32 | . . . . . . . . . . 32 . . . . Part Schematics Acquired 26 | . 1 . 14 . . . . . 2 1 . . 8 . Parts Built . | . . . . . . . . . . . . . . . Authchips . | . . . . . . . . . . . . . . . Time . | . . . . . . . . . . . . . . . Total Part Build Rating . | . . . . . . . . . . . . . . . Parts Repaired 6 | . . . 4 . . . . . 1 1 . . . . Time 294 | . . . 146 . . . . . 78 70 . . . . Parts Recycled . | . . . . . . . . . . . . . . . Recycled Matter . | . . . . . . . . . . . . . . . Retrieved Matter . | . . . . . . . . . . . . . . . Retrieved Components . | . . . . . . . . . . . . . . . Parts Scanalyzed 3 | . . . . . . . . . 2 1 . . . . Part Schematics Acquired 3 | . . . . . . . . . 2 1 . . . . Parts Damaged . | . . . . . . . . . . . . . . . Bothacking | -11 -10 -10 -9 -9 -9 -8 -8 -8 -8 -7 -7 -7 -7 -6 ------------ Run | Yrd Mat Min Mat Min Exi Min Mat Gar Mat Fac Low Low Dat Pro Used RIF Installer 1 | . . . . . . . . 1 . . . . . . Robots Hacked 9 | . . . . 1 . . . 5 . 3 . . . . Non-combat . | . . . . . . . . . . . . . . . Combat 9 | . . . . 1 . . . 5 . 3 . . . . Robot Hacks Applied 9 | . . . . 1 . . . 5 . 3 . . . . parse_system 1 | . . . . 1 . . . . . . . . . . formatsys_high 8 | . . . . . . . . 5 . 3 . . . . Relay Couplers Released 26 | . . . . . . . . 26 . . . . . . Machine Destruction 26 | . . . . . . . . 26 . . . . . . Attached 8 | . . . . . . . . 6 . 2 . . . . Fabnet Peak Effective % . | . . . . . . . . . . . . . . . Robots Rewired 13 | . . . . . 3 . . 9 1 . . . . . Allies Hacked . | . . . . . . . . . . . . . . . Hacks Repelled . | . . . . . . . . . . . . . . . Allies | -11 -10 -10 -9 -9 -9 -8 -8 -8 -8 -7 -7 -7 -7 -6 -------- Run | Yrd Mat Min Mat Min Exi Min Mat Gar Mat Fac Low Low Dat Pro Total Allies 30 | . . . . 1 3 . . 14 1 11 . . . . Largest Group 9 | . . . . 1 3 3 3 9 8 8 8 8 6 . Highest-Rated Group 296 | . . . . 31 39 37 37 268 228 296 296 293 213 . Highest-Rated Ally 40 | . . . . 31 31 21 21 40 40 37 37 37 37 . Total Orders 2 | . . . . . 2 . . . . . . . . . STAY 1 | . . . . . 1 . . . . . . . . . FOLLOW 1 | . . . . . 1 . . . . . . . . . Ally Attacks 179 | . . . . . . 9 5 57 37 34 9 10 18 . Total Damage 3644 | . . . . . . 104 80 1179 831 380 430 402 238 . Kills 38 | . . . . . . 2 1 14 10 5 3 2 1 . Allies Corrupted . | . . . . . . . . . . . . . . . Allies Melted . | . . . . . . . . . . . . . . . Intel | -11 -10 -10 -9 -9 -9 -8 -8 -8 -8 -7 -7 -7 -7 -6 ------- Run | Yrd Mat Min Mat Min Exi Min Mat Gar Mat Fac Low Low Dat Pro Robot Analysis Total 147 | . . . 2 . . . . . . . . . 145 . Derelict Logs Recovered 8 | . . 1 . 2 . . . . . . 2 2 . 1 Drone Launches . | . . . . . . . . . . . . . . . Drone Recoveries . | . . . . . . . . . . . . . . . Exploration | -11 -10 -10 -9 -9 -9 -8 -8 -8 -8 -7 -7 -7 -7 -6 ------------- Run | Yrd Mat Min Mat Min Exi Min Mat Gar Mat Fac Low Low Dat Pro Turns Passed 17970 | 95 1434 545 5425 1173 728 483 131 2318 519 2467 843 938 345 526 Spaces Moved 11580 | 38 975 146 1982 737 563 375 80 2087 569 2456 525 574 140 333 Core 1 | 1 . . . . . . . . . . . . . . Treads 3962 | . . . 1899 272 . . . . . 611 525 574 81 . Legs 3138 | 37 751 146 83 465 563 375 80 249 . . . . 56 333 Wheels 308 | . . . . . . . . 308 . . . . . . Hover 4171 | . 224 . . . . . . 1530 569 1845 . . 3 . Flight . | . . . . . . . . . . . . . . . Fastest Speed 48 | 50 56 120 120 120 120 120 120 53 53 48 160 160 120 120 Average Speed 106 | 118 105 120 143 130 120 120 121 69 58 79 160 160 145 120 Slowest Speed 240 | 120 130 120 190 190 120 120 190 190 121 230 160 160 240 120 Overloaded Moves . | . . . . . . . . . . . . . . . Propulsion Burnouts . | . . . . . . . . . . . . . . . Robots Hopped . | . . . . . . . . . . . . . . . Cave-ins Triggered . | . . . . . . . . . . . . . . . Exploration Rate (%) 67 | 3 100 30 99 100 94 93 11 99 34 58 82 77 80 48 Regions Visited 14 Branch Regions 8 Pre-discovered Areas 27 | . 2 . 1 . 1 . . . . . . . 23 . Known Exits Taken 9 | . . 1 1 . . 1 1 . 1 1 1 1 1 . Unknown Exits Taken 4 | 1 1 . . 1 1 . . . . . . . . . Scrap Searched 11 | . . . . 1 . 3 . . . . 3 3 . 1 Spaces Dug 36 | . . 1 2 . . . . 14 8 11 . . . . Terrain Destroyed 413 | . 17 1 253 49 . . . 49 8 22 . 12 2 . Melee 36 | . . 1 2 . . . . 14 8 11 . . . . Projectile 3 | . . . . . . . . 1 . . . . 2 . AOE 374 | . 17 . 251 49 . . . 34 . 11 . 12 . . Terrain Rammed . | . . . . . . . . . . . . . . . Walls Destroyed . | . . . . . . . . . . . . . . . Machines Disabled . | . . . . . . . . . . . . . . . Actions | -11 -10 -10 -9 -9 -9 -8 -8 -8 -8 -7 -7 -7 -7 -6 --------- Run | Yrd Mat Min Mat Min Exi Min Mat Gar Mat Fac Low Low Dat Pro Total 15747 | 66 1207 501 4012 855 598 393 105 2644 704 2886 529 588 222 437 Wait 2772 | 2 84 347 1631 48 . 4 11 150 84 313 1 3 4 90 Move 11566 | 37 974 145 1981 736 562 374 79 2086 568 2455 524 573 139 333 Hop . | . . . . . . . . . . . . . . . Pick Up 100 | 8 12 . 20 4 6 1 2 17 5 8 3 3 11 . Fast Attach 39 | 7 . . 7 . . . 1 5 2 10 . . 7 . Attach 28 | . 2 . 5 . . . . 4 3 6 . . 7 1 Detach 7 | . . . 3 . . . . 2 1 . . . 1 . Swap 224 | . 37 2 48 16 1 3 5 74 4 23 . 2 7 2 Drop 102 | . 17 . 18 6 5 3 3 24 5 10 1 2 8 . Fire 622 | 12 70 5 290 34 24 8 4 108 12 17 . 3 25 10 Melee 171 | . 11 2 9 11 . . . 66 20 42 . 2 7 1 Ram . | . . . . . . . . . . . . . . . Kick . | . . . . . . . . . . . . . . . Crush 6 | . . . . . . . . . . . . . 6 . Escape Stasis 52 | . . . . . . . . 52 . . . . . . Rewire 37 | . . . . . . . . 35 . 2 . . . . Trap . | . . . . . . . . . . . . . . . Miscellaneous 21 | . . . . . . . . 21 . . . . . . Route ------- -11/Scrapyard -10/Materials (discovered 5 exits: *Mat x3 / [*Min] / Sub) -10/Mines (discovered 2 exits: *Mat / Sub) -9/Materials (discovered 6 exits: *Mat x3 / *Min x2 / *Sto) -9/Mines (discovered 3 exits: *Mat x2 / *Exi) -9/Exiles (discovered 2 exits: [*Min x2]) -8/Mines (discovered 2 exits: *Mat x2) -8/Materials -8/Garrison (discovered 4 exits: *Fac x3 / *Mat) -8/Materials -7/Factory (discovered 4 exits: *Fac x2 / *Low x2) -7/Lower Caves -7/Lower Caves (discovered 2 exits: *Fac / *Dat) -7/Data Miner -6/Proximity Caves (discovered 1 exit: *Fac) History --------- Turn | Location | Event 22 | -11/Scrapyard | Discovered new exit (range 15) 96 | -11/Scrapyard | Entered Materials 251 | -10/Materials | Discovered new exit (range 15) 314 | -10/Materials | Build established: Mutant 386 | -10/Materials | Discovered new exit (range 8) 484 | -10/Materials | Identified exit to Materials 484 | -10/Materials | Identified exit to Subcaves 530 | -10/Materials | Learned location of 1 exit from Storage 613 | -10/Materials | Loaded intel: 10 interactive machine locations 621 | -10/Materials | Learned location of 2 exits from Subcaves 637 | -10/Materials | Discovered new exit (range 13) 639 | -10/Materials | Loaded intel: 1 repair station location 668 | -10/Materials | Learned 4 Subcaves zone layouts 696 | -10/Materials | Derelicts attacked the area 1530 | -10/Materials | Entered Mines 1557 | -10/Mines | Learned 4 Materials zone layouts 1636 | -10/Mines | Assembled infested the area 2059 | -10/Mines | Discovered exit to Materials (range 6) 2075 | -10/Mines | Entered Materials 2075 | -9/Materials | Evolved 2 slots: Propulsion x1, Utility x1 2076 | -9/Materials | Identified exit to Storage 2077 | -9/Materials | Identified exit to Materials 2374 | -9/Materials | Discovered new exit (range 13) 3419 | -9/Materials | Repaired Hrd. Light Armor Plating 3459 | -9/Materials | Repaired Adv. Treads 3467 | -9/Materials | Learned Storage security intel 3498 | -9/Materials | Repaired Adv. Treads 3538 | -9/Materials | Repaired Adv. Treads 3595 | -9/Materials | Learned Materials emergency access door positions 3641 | -9/Materials | Learned location of 1 exit from Storage 3679 | -9/Materials | Identified exit to Mines 3725 | -9/Materials | Loaded intel: 1 recycling unit location 3850 | -9/Materials | Learned Storage security intel 5275 | -9/Materials | First assault squad dispatched 7300 | -9/Materials | Sterilization system engaged 7300 | -9/Materials | Non-combat units ordered to evacuate 7400 | -9/Materials | Combat units ordered to evacuate 7500 | -9/Materials | Entered Mines 7589 | -9/Mines | Learned Materials stockpile data 7600 | -9/Mines | Learned Materials garrison access intel 7850 | -9/Mines | Deemed a non-threat by the Exiles lab entrance 7852 | -9/Mines | Discovered new exit (range 5) 7893 | -9/Mines | Discovered exit to Materials (range 8) 7906 | -9/Mines | Core integrity fell below 50% 7968 | -9/Mines | Met a Derelict who couldn't figure out how to use a Trap Extractor 8570 | -9/Mines | Discovered exit to Materials (range 5) 8571 | -9/Mines | Received a Mining Laser from a helpful Derelict 8673 | -9/Mines | Entered Exiles 8673 | -9/Exiles | Found Exiles lab destroyed 8673 | -9/Exiles | Accompanied by 1 ally 8689 | -9/Exiles | Discovered new exit (range 15) 8970 | -9/Exiles | Learned location of Zion (-6) 9177 | -9/Exiles | Opened EX-Vault 9185 | -9/Exiles | Found Deploy-a-Sentry 9187 | -9/Exiles | Found Deploy-a-Sentry 9189 | -9/Exiles | Found Deploy-a-Sentry 9392 | -9/Exiles | Discovered new exit (range 10) 9401 | -9/Exiles | Entered Mines 9401 | -8/Mines | Accompanied by 3 allies 9717 | -8/Mines | Discovered exit to Materials (range 11) 9877 | -8/Mines | Discovered exit to Materials (range 5) 9884 | -8/Mines | Entered Materials 9884 | -8/Materials | Accompanied by 3 allies 9884 | -8/Materials | Evolved 2 slots: Propulsion x1, Utility x1 9887 | -8/Materials | Loaded intel: 1 garrison access location 9965 | -8/Materials | Identified exit to Garrison 10015 | -8/Materials | Entered Garrison 10015 | -8/Garrison | Accompanied by 2 allies 10047 | -8/Garrison | Triggered checkpoint 10098 | -8/Garrison | Discovered new exit (range 3) 10303 | -8/Garrison | Triggered checkpoint 10370 | -8/Garrison | Garrison Relay disabled 10449 | -8/Garrison | Lost 3 allies 10478 | -8/Garrison | Triggered checkpoint 10635 | -8/Garrison | Triggered checkpoint 10702 | -8/Garrison | Garrison Relay disabled 10743 | -8/Garrison | Phase Generator disabled 10743 | -8/Garrison | Discovered new exit (range 9) 10915 | -8/Garrison | Garrison Relay disabled 10928 | -8/Garrison | Build established: Scavenger-Mutant 10949 | -8/Garrison | Triggered checkpoint 10995 | -8/Garrison | Discovered new exit (range 10) 11036 | -8/Garrison | Installed Relay Interface Framework 11049 | -8/Garrison | Triggered checkpoint 11114 | -8/Garrison | Destroyed 7 combat bots 11205 | -8/Garrison | Triggered checkpoint 11210 | -8/Garrison | Garrison Relay disabled 11243 | -8/Garrison | Triggered checkpoint 11303 | -8/Garrison | Garrison Relay disabled 11360 | -8/Garrison | Triggered checkpoint 11391 | -8/Garrison | Discovered new exit (range 10) 11448 | -8/Garrison | Build established: Commander-Mutant 11449 | -8/Garrison | Triggered checkpoint 11491 | -8/Garrison | Lost 3 parts (1p1n1w) 11525 | -8/Garrison | Garrison Relay disabled 11775 | -8/Garrison | Identified exit to Factory 12264 | -8/Garrison | Identified exit to Materials 12333 | -8/Garrison | Entered Materials 12333 | -8/Materials | Accompanied by 8 allies 12365 | -8/Materials | Discovered exit to Factory (range 16) 12511 | -8/Materials | Build established: Bothacker-Mutant 12511 | -8/Materials | Lost 3 allies 12717 | -8/Materials | Repaired Broken Antigrav System 12733 | -8/Materials | First assault squad dispatched 12796 | -8/Materials | Lost 5 allies 12852 | -8/Materials | Entered Factory 12852 | -7/Factory | Evolved 2 slots: Propulsion x1, Utility x1 13046 | -7/Factory | Discovered new exit (range 8) 13049 | -7/Factory | Identified exit to Lower Caves 13192 | -7/Factory | Garrison activated, responded to threat 13213 | -7/Factory | Discovered exit to Lower Caves (range 3) 13231 | -7/Factory | Lost 3 allies 13318 | -7/Factory | Discovered new exit (range 16) 13326 | -7/Factory | Identified exit to Factory 13564 | -7/Factory | Discovered exit to Factory (range 5) 13664 | -7/Factory | Repaired Broken Cmb. Airjet 13996 | -7/Factory | Lost 7 parts (1p4n2w) 14969 | -7/Factory | Fabricated P-60 Hacker (x2) 14976 | -7/Factory | Fabricated P-60 Hacker (x2) 15037 | -7/Factory | Fabricated P-60 Hacker (x2) 15120 | -7/Factory | Fabricated P-60 Hacker (x2) 15319 | -7/Factory | Entered Lower Caves 15319 | -7/Lower Caves | Accompanied by 8 allies 15350 | -7/Lower Caves | Learned Factory stockpile data 15417 | -7/Lower Caves | Learned 4 Factory zone layouts 15418 | -7/Lower Caves | Build established: Commander-Mutant 16152 | -7/Lower Caves | Discovered new exit (range 5) 16154 | -7/Lower Caves | Encountered a Warlord checkpoint 16157 | -7/Lower Caves | Identified exit to Lower Caves 16162 | -7/Lower Caves | Entered another Lower Caves area 16162 | -7/Lower Caves | Accompanied by 8 allies 16175 | -7/Lower Caves | Discovered exit to Factory (range 15) 16493 | -7/Lower Caves | Build established: Bothacker-Mutant 16703 | -7/Lower Caves | Learned Factory trap positions 16988 | -7/Lower Caves | Discovered new exit (range 13) 17012 | -7/Lower Caves | Learned Factory emergency access door positions 17095 | -7/Lower Caves | Identified exit to Data Miner 17100 | -7/Lower Caves | Entered Data Miner 17100 | -7/Data Miner | Accompanied by 6 allies 17100 | -7/Data Miner | Discovered new exit (range 6) 17132 | -7/Data Miner | Met Data Miner 17160 | -7/Data Miner | Learned location of Section 7 (-3) 17160 | -7/Data Miner | Acquired the access code to Warlord's prototype stash 17188 | -7/Data Miner | Received God Mode back door access code from Data Miner 17202 | -7/Data Miner | Destroyed Data Miner 17206 | -7/Data Miner | Interfaced with the Data Conduit 17212 | -7/Data Miner | Found Prototype Hackware 17214 | -7/Data Miner | Found Prototype Hackware 17275 | -7/Data Miner | Lost 6 allies 17280 | -7/Data Miner | Lost 3 parts (1n1u1w) 17300 | -7/Data Miner | Core integrity fell below 50% 17344 | -7/Data Miner | Core integrity fell below 20% 17376 | -7/Data Miner | Lost 9 parts (1p4n1u3w) 17422 | -7/Data Miner | System corruption reached 10% 17444 | -7/Data Miner | Identified exit to Proximity Caves 17445 | -7/Data Miner | Entered Proximity Caves 17541 | -6/Proximity Caves | Acquired the password to a Derelict Tinkerer's latest research 17592 | -6/Proximity Caves | Learned 12 Factory zone layouts 17617 | -6/Proximity Caves | Spotted B-75 Beast 17875 | -6/Proximity Caves | Received a Behemoth hack from an annoying Tinkerer 17934 | -6/Proximity Caves | Caught by Unaware searching for contraband prototypes 17963 | -6/Proximity Caves | Discovered exit to Factory (range 14) 17971 | -6/Proximity Caves | Destroyed by D-53 Grenadier with Mini Grenade Launcher Last Messages --------------- 17899_ System corrupted: Neutron Cannon failed to cycle. 17923_ System corrupted: Matter fused (-8). 17930_ System corrupted: Neutron Cannon failed to cycle. 17933_ Overheating: Lrg. Storage Unit damaged (-21). 17933_ Overheating: Adv. Targeting Computer damaged (-11). 17933_ Overheating: Antimatter Reactor damaged (-60). 17934_ P-70 Sage: "CONFIRMED SUSPICIOUS DERELICT. COMMENCE PROTOTYPE CONTRABAND SEARCH." 17935_ Power failure, Antimatter Reactor shutdown. 17941_ System corrupted: Matter fused (-5). 17941_ Lyr. Medium Armor Plating destroyed. 17947_ Antimatter Reactor destroyed. 17948_ Neutron Cannon destroyed. 17949_ I-36 Angel destroyed. 17958_ Imp. Deuterium Engine fries itself beyond repair. 17958_ Target Drone destroyed. 17962_ Data Receptor disabled. 17963_ EXIT=FOUND: FACTORY 17965_ Enh. Flexi-carbon Leg destroyed. 17969_ System corrupted: Heat flow error (+202). Map ----- +----------------------------------------------------+ | | | | | | | | | ?????????????????????????????????????????????????? | | ?????????????????????????????????????????????????? | | ?????????????????????????????????????????????????? | | ?????????????????????????????????????????????????? | | ?????????????????????????????????????????????????? | | ?????????????????????????????????????????????????? | | ?????????????????????????????????????????????????? | | ?????????????????????????????????????????????????? | | ?????????????????????????????????????????????????? | | ?????????????????????????????????????????????????? | | ?????????????????????????????????????????????????? | | ?????????????????????????????????????????????????? | | ?????????????????????????????????????????????????? | | ?????????????????????????????????????????????????? | | ?????????????????????????????????????????????????? | | ?????????????????????????????????????????????????? | | ?????????????????????????????????????????????????? | | ????????######???############??##????????????????? | | ???????? #"""""""# #? #????????????????? | | ????????# #" """ "# # < #????????????????? | | ????????# #" """ "# #????????????????? | | ????????# #"""""""# @ Y ###????????????????? | | ????????# #"""""""# C#????????????????? | | ????????# #"" ""# C#????????????????? | | ????????# #"" ""# C#????????????????? | | ????????# #?" "?# C#????????????????? | | ######### ####/#### C#????????????????? | | " d C#????????????????? | | !% p C#????????????????? | | d ###????????????????? | | #??????????????????? | | #??????????????????? | | #??????????????????? | | #??????????????????? | | #??????????????????? | | #??????????????????? | | #??????????????????? | | #??????????????????? | | #### #??????????????????? | | #???????????????????????? | | #???????????????????????? | | ????????????????????????? | | % ???????????????????????????? | | " ?????????????????????????????? | | ????????????????????????????????????? | | ?????????????????????????????????????????? | +----------------------------------------------------+ Best States ------------- Heat Dissipation 34 Energy Generation 21 Energy Capacity 325 Matter Stores 300 Matter Capacity 300 Sight Range 16 Robot Scan Range 15 Terrain Scan Density 10 Armor Coverage 225 Evasion (%) 55 Targeting Accuracy 8 Core Analysis 6 Recoil Reduction 5 Relay Coupler Types 1 Relay Coupler Value 57 Authchip Count 6 Item Schematics ----------------- Hcp. Storage Unit | -10/Materials | Hacked Aluminum Leg | -9/Materials | Extracted Shotgun | -9/Materials | Extracted Utility Shielding | -9/Materials | Extracted Hover Unit | -9/Materials | Extracted Lgt. Treads | -9/Materials | Extracted Ion Engine | -9/Materials | Extracted Weight Redist. System | -9/Materials | Extracted Signal Interpreter | -9/Materials | Extracted Mace | -9/Materials | Extracted Med. Laser | -9/Materials | Extracted Com. Wheel | -9/Materials | Extracted Imp. Ion Engine | -9/Materials | Extracted Disposable Heat Sink | -9/Materials | Extracted Beam Cannon | -9/Materials | Extracted Cmb. Airjet | -8/Materials | Scanalyzed Antigrav System | -8/Materials | Scanalyzed Imp. Arc Projector | -7/Factory | Scanalyzed Combat Drone Bay | -7/Data Miner | Free Lgt. Regenerative Plating | -7/Data Miner | Free Cld. Aerolev Unit | -7/Data Miner | Free Gravity Neutralizer | -7/Data Miner | Free Cld. Plasma Cannon | -7/Data Miner | Free Imp. Focal Shield | -7/Data Miner | Free Hvy. Treads | -7/Data Miner | Free Variable Charge Gun | -7/Data Miner | Free Robot Schematics ------------------ P-60 Hacker | -7/Factory | Hacked A-15 Conveyor | -7/Data Miner | Free Y-54 Guardian | -7/Data Miner | Free H-55 Commando | -7/Data Miner | Free X-57 Shotgunner | -7/Data Miner | Free Fabricated ------------ P-60 Hacker | x2 | -7/Factory | Authchip P-60 Hacker | x2 | -7/Factory | Authchip P-60 Hacker | x2 | -7/Factory | Authchip P-60 Hacker | x2 | -7/Factory Alien Tech Used ----------------- None Achievements -------------- None Challenges ------------ None Game ------ Seed CoilCombatSuit Manual? 0 Play Time 04:32:06 Cumulative 188.3 hours Start 2024.09.26 @ 22:20:48 End 2024.09.27 @ 05:06:41 Sessions 1 Manual Loads 0 Difficulty Rogue Special Mode None Game No. 31 Rogue 31 Adventurer 0 Explorer 0 Win Type - Total 7 Types 2/0/4/1/0/0/0/0/0 Lore% 47 Gallery% 63 Achievement% 59 Wizard Run 0 Options --------- Layout 0 ASCII 0 Keyboard 1 Movement Arrows Keybinds 0 Fullscreen 1 Font 12/Cog Map View 83x54 Zoom Use 0% Tactical HUD 1 Map Filters NONE Filters NONE Steam 0 RUN: 898bdc1f-a59c-42a5-8ea8-afc763ddd62e